Cogmind - Beta 13 *** ADVENTURER MODE // 2024.05.04 @ 14:20:50 Player: e.v.o Result: Self-destructed Performance ------------- Evolutions (1) 500 Regions Visited (2) 400 Robots Destroyed (28) 140 Value Destroyed (750) 750 Prototype IDs (0) 0 Alien Tech Used (0) 0 Bonus (0) 0 TOTAL SCORE: 1790 Bonus ------- None Cogmind --------- Core Integrity 335/400 Matter 276/300 Energy 265/265 System Corruption 0% Temperature Cool (60) Movement Treading (160) Location -9/Materials Parts ------- > --- POWER (1) -------- Improved Ion Engine > --- PROPULSION (2) --- Light Treads Light Treads > --- UTILITY (4) ------ Large Storage Unit Structural Scanner Sensor Array Signal Interpreter > --- WEAPON (2) ------- Heavy EM Pulse Gun Autogun > --- INVENTORY (15) --- Ion Engine Ion Engine Light Treads Light Treads Light Treads Improved Heat Sink Tractor Beam Heavy EM Pulse Gun Beam Rifle Assault Rifle Light Cannon Mining Laser Peak State ------------ > --- POWER ------------ Improved Ion Engine > --- PROPULSION ------- Light Treads Light Treads > --- UTILITY ---------- Large Storage Unit Structural Scanner Sensor Array Signal Interpreter > --- WEAPON ----------- Heavy EM Pulse Gun Autogun > --- INVENTORY -------- Ion Engine Ion Engine Light Treads Light Treads Light Treads Improved Heat Sink Tractor Beam Heavy EM Pulse Gun Beam Rifle Assault Rifle Light Cannon Mining Laser [Rating: 13] Favorites ----------- Power Ion Engine Engine Ion Engine Propulsion Light Treads Treads Light Treads Leg Aluminum Leg Wheel Wheel Utility Signal Interpreter Device Sensor Array Storage Large Storage Unit Processor Signal Interpreter Weapon Light Cannon Energy Gun Medium Laser Ballistic Gun Autogun Ballistic Cannon Light Cannon Build | -11 -10 -9 ------- Run | Yrd Mat Mat Slots Evolved 2 | . . 2 Power . | . . . Propulsion . | . . . Utility 2 | . . 2 Weapon . | . . . Parts Attached 27 | 6 14 7 Power 5 | 1 3 1 Engine 5 | 1 3 1 Core . | . . . Reactor . | . . . Propulsion 7 | 2 4 1 Treads 3 | . 2 1 Leg 2 | . 2 . Wheel 2 | 2 . . Hover . | . . . Flight . | . . . Utility 7 | 1 4 2 Device 3 | . 1 2 Storage 3 | 1 2 . Processor 1 | . 1 . Hackware . | . . . Protection . | . . . Artifact . | . . . Weapon 8 | 2 3 3 Energy Gun 3 | 1 . 2 Energy Cannon . | . . . Ballistic Gun 2 | 1 . 1 Ballistic Cannon 3 | . 3 . Launcher . | . . . Special Weapon . | . . . Impact Weapon . | . . . Slashing Weapon . | . . . Piercing Weapon . | . . . Special Melee Weapon . | . . . Unidentified Prototypes . | . . . Parts Lost 1 | . 1 . Power . | . . . Propulsion 1 | . 1 . Utility . | . . . Weapon . | . . . Highest Loss Streak 1 | . 1 . To Critical Strikes . | . . . Average Slot Usage (%) 97 | . 96 99 Engine 12 | . 14 11 Treads 19 | . 18 22 Leg 2 | . 5 . Wheel 2 | . 3 . Device 11 | . 3 21 Storage 12 | . 14 11 Processor 9 | . 7 11 Energy Gun 9 | . 9 9 Ballistic Gun 4 | . 2 7 Ballistic Cannon 11 | . 15 4 Naked Turns . | . . . Heaviest Build 35 | 12 31 35 Greatest Support 40 | 20 40 40 Greatest Overweight (x) 1 | . 1 . Average Overweight (x) . | . . . Largest Inventory Capacity 15 | 8 15 15 Average Capacity 11 | 6 9 15 Most Carried 13 | 5 8 13 Average Carried 7 | 2 7 9 Final Capacity 15 | 8 15 15 Final Carried 12 | 5 8 12 Class Distribution -------------------- 49% | Mutant 33% | Skirmisher 12% | Scavenger-Mutant 4% | Scavenger-Skirmisher Dominant Class ---------------- Mutant | -10/Materials Skirmisher | -9/Materials Resources | -11 -10 -9 ----------- Run | Yrd Mat Mat Matter Collected 685 | 278 218 189 Remotely . | . . . Salvage Created 1218 | 107 465 646 Parts 72 | 5 30 37 Haulers Intercepted 2 | . 1 1 Recyclers Shooed 4 | 1 1 2 Parts Field Recycled . | . . . Retrieved Matter . | . . . Parts Self-Destructed . | . . . Prevented . | . . . Kills | -11 -10 -9 ------- Run | Yrd Mat Mat Combat Hostiles Destroyed 17 | . 8 9 Guns 15 | . 7 8 Cannons 2 | . 1 1 Classes Destroyed 6 | 2 3 1 Tunneler 1 | 1 . . Hauler 2 | . 1 1 Recycler 4 | 1 1 2 Watcher 4 | . 3 1 Grunt 16 | . 8 8 Sentry 1 | . . 1 Best Kill Streak 6 | 2 6 6 Combat Bots Only 6 | . 6 2 Max Kills in Single Turn 2 | 1 2 2 Gunslinging 1 | . 1 . Exploded . | . . . Melee . | . . . Uniques/NPCs Destroyed . | . . . Combat | -11 -10 -9 -------- Run | Yrd Mat Mat Hostile Shots Fired 90 | . 40 50 Missed 27 | . 12 15 Damage Taken 631 | . 288 343 Core 114 | . 49 65 Absorbed by Shields . | . . . Ignored by Resistances 189 | . 84 105 Core Remaining (%) 90 | 100 80 . Volleys Fired 68 | 6 35 27 Largest 2 | 2 2 2 Hottest 85 | 70 85 80 Shots Fired 136 | 12 70 54 Gun 107 | 12 52 43 Cannon 29 | . 18 11 Launcher . | . . . Special . | . . . Kinetic 68 | 6 35 27 Thermal 41 | 6 35 . Explosive . | . . . Electromagnetic 27 | . . 27 Robot Hit Streak 16 | 5 16 16 Robot Miss Streak 4 | 1 4 3 Penetration Max . | . . . Secondary Targets 4 | . 3 1 Max Gunslinging Chain 1 | . 1 1 Shots Hit Robots 101 | 10 49 42 Core Hits 43 | 3 24 16 Critical Kills . | . . . Critical Parts Destroyed . | . . . Critical Strikes 7 | . 6 1 Burn 5 | . 5 . Blast 1 | . 1 . Corrupt 1 | . . 1 Melee Attacks . | . . . Impact . | . . . Slashing . | . . . Piercing . | . . . Sneak Attacks . | . . . Combat Hostiles . | . . . Follow-up Attacks . | . . . Damage Inflicted 1586 | 123 709 754 Guns 1158 | 123 486 549 Cannons 327 | . 221 106 Explosions 88 | . . 88 Melee . | . . . Ramming 13 | . 2 11 Kinetic 763 | 48 406 309 Thermal 464 | 75 301 88 Explosive . | . . . Electromagnetic 346 | . . 346 Impact . | . . . Slashing . | . . . Piercing . | . . . Highest Corruption . | . . . Average Corruption . | . . . Corruption Purged . | . . . Corruption Blocked . | . . . Overload Shots . | . . . Overflow Damage . | . . . Projectiles . | . . . Explosions . | . . . Melee . | . . . Knockbacks 3 | . 2 1 Impact 1 | . . 1 Kinetic 2 | . 2 . Secondary . | . . . Self-Inflicted Damage . | . . . Shots . | . . . Rammed 1 | . 1 . Targets Rammed 2 | . 1 1 Kicked . | . . . Crushed 1 | . . 1 Highest Temperature 252 | 56 252 105 Average Temperature 67 | 27 93 33 Received Heat Transfer 402 | . 201 201 Siege Activations . | . . . Robots Corrupted . | . . . Combat Hostiles . | . . . Parts Fried . | . . . Impact Corruptions . | . . . Robots Melted . | . . . Combat Hostiles . | . . . Parts Melted 2 | . 2 . Heat Transferred 1530 | 222 1258 50 Parts Sabotaged . | . . . Parts Stolen . | . . . Parts Stripped . | . . . Power Chain Reactions 1 | . . 1 Alert | -11 -10 -9 ------- Run | Yrd Mat Mat Peak Influence 277 | 10 248 277 Initial 5 | . 5 1 Average 118 | 2 141 112 Maximum Alert Level 1 | . 1 1 Low Security (%) 76 | 100 65 87 Level 1 23 | . 35 12 Level 2 . | . . . Level 3 . | . . . Level 4 . | . . . Level 5 . | . . . High Security . | . . . Max Security . | . . . Squads Dispatched . | . . . Investigation . | . . . Extermination . | . . . Reinforcement . | . . . Assault . | . . . Garrison . | . . . Intercept . | . . . Searches Triggered . | . . . Construction Impeded . | . . . Haulers Reinforced . | . . . Active Scanning Responses . | . . . Cargo Convoy Interrupts . | . . . Stealth | -11 -10 -9 --------- Run | Yrd Mat Mat Distress Signals 3 | . . 3 Communications Jammed . | . . . Distress Signals . | . . . Times Spotted 28 | . 13 15 Peak Tracking Total 6 | . 5 6 Tactical Retreats . | . . . Traps | -11 -10 -9 ------- Run | Yrd Mat Mat Traps Triggered 1 | . 1 . Indirectly . | . . . Trap Hack Attempts . | . . . Triggered . | . . . Disarmed . | . . . Reprogrammed . | . . . Reused . | . . . Traps Extracted . | . . . Installed . | . . . Triggered . | . . . Machines | -11 -10 -9 ---------- Run | Yrd Mat Mat Machines Disabled 1 | . 1 . Max in Single Turn 1 | . 1 . Machines Repaired . | . . . Machines Dismantled . | . . . Machines Sabotaged . | . . . Overloaded Fab Kills . | . . . Hacking | -11 -10 -9 --------- Run | Yrd Mat Mat Machines Accessed 2 | . 2 . Terminals 2 | . 2 . Fabricators . | . . . Repair Stations . | . . . Recycling Units . | . . . Scanalyzers . | . . . Garrison Access . | . . . Total Hacks 4 | . 4 . Successful 3 | . 3 . Failed 1 | . 1 . Catastrophic 1 | . 1 . Database Lockouts . | . . . Manual . | . . . Terminals 4 | . 4 . Fabricators . | . . . Repair Stations . | . . . Recycling Units . | . . . Scanalyzers . | . . . Garrison Access . | . . . Terminal Hacks 3 | . 3 . Unreport Threat 2 | . 2 . Registered Components 1 | . 1 . Fabricator Hacks . | . . . Repair Station Hacks . | . . . Recycling Unit Hacks . | . . . Scanalyzer . | . . . Garrison Access Hacks . | . . . Unauthorized Hacks . | . . . Terminals . | . . . Fabricators . | . . . Repair Stations . | . . . Recycling Units . | . . . Scanalyzers . | . . . Garrison Access . | . . . Data Cores Recovered . | . . . Used . | . . . Hacking Detections 1 | . 1 . Full Trace Events 1 | . 1 . Feedback Events . | . . . Feedback Blocked . | . . . Robot Schematics Acquired . | . . . Robots Built . | . . . Authchips . | . . . Time . | . . . Total Robot Build Rating . | . . . Part Schematics Acquired . | . . . Parts Built . | . . . Authchips . | . . . Time . | . . . Total Part Build Rating . | . . . Parts Repaired . | . . . Time . | . . . Parts Recycled . | . . . Recycled Matter . | . . . Retrieved Matter . | . . . Retrieved Components . | . . . Parts Scanalyzed . | . . . Part Schematics Acquired . | . . . Parts Damaged . | . . . Bothacking | -11 -10 -9 ------------ Run | Yrd Mat Mat Used RIF Installer . | . . . Robots Hacked . | . . . Non-combat . | . . . Combat . | . . . Robot Hacks Applied . | . . . Relay Couplers Released . | . . . Fabnet Peak Effective % . | . . . Robots Rewired . | . . . Allies Hacked . | . . . Hacks Repelled . | . . . Allies | -11 -10 -9 -------- Run | Yrd Mat Mat Total Allies . | . . . Largest Group . | . . . Highest-Rated Group . | . . . Highest-Rated Ally . | . . . Total Orders . | . . . Ally Attacks . | . . . Total Damage . | . . . Kills . | . . . Allies Corrupted . | . . . Allies Melted . | . . . Intel | -11 -10 -9 ------- Run | Yrd Mat Mat Robot Analysis Total . | . . . Derelict Logs Recovered . | . . . Drone Launches . | . . . Drone Recoveries . | . . . Exploration | -11 -10 -9 ------------- Run | Yrd Mat Mat Turns Passed 1022 | 88 540 394 Spaces Moved 534 | 72 278 184 Core 6 | 6 . . Treads 377 | . 193 184 Legs 57 | . 57 . Wheels 94 | 66 28 . Hover . | . . . Flight . | . . . Fastest Speed 50 | 50 80 160 Average Speed 140 | 77 144 160 Slowest Speed 190 | 80 190 160 Overloaded Moves . | . . . Propulsion Burnouts . | . . . Robots Hopped . | . . . Cave-ins Triggered . | . . . Exploration Rate (%) 25 | 4 55 17 Regions Visited 2 Branch Regions . Pre-discovered Areas . | . . . Known Exits Taken 1 | . 1 . Unknown Exits Taken 1 | 1 . . Scrap Searched . | . . . Spaces Dug . | . . . Terrain Destroyed 6 | . . 6 Melee . | . . . Projectile . | . . . AOE 6 | . . 6 Terrain Rammed . | . . . Walls Destroyed . | . . . Machines Disabled . | . . . Actions | -11 -10 -9 --------- Run | Yrd Mat Mat Total 669 | 88 349 232 Wait . | . . . Move 532 | 71 277 184 Hop . | . . . Pick Up 23 | 5 10 8 Fast Attach 10 | 6 3 1 Attach 5 | . 3 2 Detach . | . . . Swap 12 | . 8 4 Drop 17 | . 12 5 Fire 68 | 6 35 27 Melee . | . . . Ram . | . . . Kick . | . . . Crush 2 | . 1 1 Escape Stasis . | . . . Rewire . | . . . Trap . | . . . Miscellaneous . | . . . Route ------- -11/Scrapyard -10/Materials (discovered 3 exits: *Mat x2 / [*Min]) -9/Materials History --------- Turn | Location | Event 16 | -11/Scrapyard | Discovered new exit (range 15) 89 | -11/Scrapyard | Entered Materials 256 | -10/Materials | Discovered new exit (range 12) 311 | -10/Materials | Build established: Mutant 375 | -10/Materials | Discovered new exit (range 11) 527 | -10/Materials | Discovered new exit (range 9) 626 | -10/Materials | Identified exit to Materials 629 | -10/Materials | Entered another Materials area 629 | -9/Materials | Evolved 2 slots: Utility x2 963 | -9/Materials | Build established: Skirmisher 1023 | -9/Materials | Self-destructed Last Messages --------------- 00986_ Dropped Tractor Beam. 00990_ U-05 Engineer builds a Wall. 00991_ G-34 Mercenary destroyed. 00998_ Acquired 8 matter. 00999_ K-01 Serf collects debris. 01002_ W-16 Scout distress signal alerts nearby ally. 01003_ K-01 Serf collects debris. 01006_ A-02 Transporter destroyed. 01007_ K-01 Serf collects debris. 01011_ R-06 Scavenger collects Prototype Energy Gun. 01013_ G-34 Mercenary destroyed. 01013_ K-01 Serf collects debris. 01019_ R-06 Scavenger collects Aluminum Leg. 01020_ G-34 Mercenary destroyed. 01020_ Switching to secondary target: Y-45 Defender. 01022_ K-01 Serf collects debris. 01022_ R-06 Scavenger collects Ion Engine. Map ----- +----------------------------------------------------+ | ?????????????????????????????????????????????## | | ?????????????????????????????????????????????## | | ?????????????????????????????????????????????## % | | ?????????????????????????????????????????????## [ | | ?????????????????????????????????????????????## % | | ?????????????????????????????????????????????## | | ?????????????????????????????????????????????## | | ?????????????????????????????????????????????## | | ?????????????????????????????????????????????## | | ???????????????????????????????????############ | | ???????????????????????????????????############ | | ???????????????????????????????????## #### | | ???????????????????????????????????##"S #### | | ???????????????????????????????????##""" #### | | ???????????????????????????????????## "" + | | ???????????????????????????????????## ##### | | ???????????????????################## ##### | | ???????????????????#####################+####### | | ???????????????????## !####%=### | | ???????????????????## !%+%=%x=[[!* | | ???????????????????## k####!!=## | | ???????????????????## ########## | | ???????????????????## ### # """ """ | | ???????????????????## %! ##?????? + """ """ | | ???????????????????## !*= ##?????? # """ """ | | ???????????????????## =[@r! ##??????x# | | ???????????????????######/######?????? # | | ???????????????????##### mk ##?????? # #T## | | ??????????????????????##r![ ?????????## ####### | | ?????????????????????? * ##??????????? ####### | | ??????????????????????x g # ??????????? ?????## # | | ?????????????????????""" # ??????????? ?????## # | | ?????????????????????""" g # ??????????? ?????## # | | ?????????????????????""" Y# ?????????????????## + | | ?????????????????????? + ?????????????????#### | | ??????????????????????? # ?????????????????#### | | ??????????????????????? # ???????????????????## | | ??????????????????????? # ???????????????????## | | ??????????????????????? # ???????????????????## | | ?????????????????????? #????????????????????## | | ??????????????????????##+###???????????????????? | | ??????????????????????# ?????????????????????? | | ?????????????????????????????????????????????????? | | ?????????????????????????????????????????????????? | | ?????????????????????????????????????????????????? | | ?????????????????????????????????????????????????? | | ?????????????????????????????????????????????????? | | ?????????????????????????????????????????????????? | | ?????????????????????????????????????????????????? | | ?????????????????????????????????????????????????? | +----------------------------------------------------+ Best States ------------- Heat Dissipation 28 Energy Generation 12 Energy Capacity 265 Matter Stores 300 Matter Capacity 300 Sight Range 16 Robot Scan Range 14 Terrain Scan Density 10 Resistance: KI 20 Resistance: TH 20 Resistance: EX 20 Resistance: EM 20 Resistance: I 20 Resistance: S 20 Resistance: P 20 Evasion (%) 55 Recoil Reduction 2 Offensive Hacking 10 Item Schematics ----------------- None Robot Schematics ------------------ None Fabricated ------------ Nothing Alien Tech Used ----------------- None Achievements -------------- None Challenges ------------ None Game ------ Seed GammaFocalMicroactuators Manual? 0 Play Time 00:10:10 Cumulative 66.1 hours Start 2024.05.04 @ 14:13:22 End 2024.05.04 @ 14:20:50 Sessions 1 Manual Loads 0 Difficulty Adventurer Special Mode None Game No. 112 Rogue 92 Adventurer 20 Explorer 0 Win Type - Total 0 Types 0/0/0/0/0/0/0/0/0 Lore% 23 Gallery% 38 Achievement% 30 Wizard Run 0 Options --------- Layout 1 ASCII 0 Keyboard 0 Movement Mouse Keybinds 0 Fullscreen 2 Font 24/Smallcaps Map View 50x35 Zoom Use 0% Tactical HUD 1 Map Filters NONE Filters NONE Steam 1 RUN: 76384ce5-76d6-4f66-a0ec-346b8b3ffc13